[Event "Hasselbacken Open 2021"]
[Site "Stockholm"]
[Date "2021.11.05"]
[Round "1.8"]
[White "Lindgren, Philip"]
[Black "Andersson, Bjorn"]
[Result "1-0"]
[ECO "E18"]
[WhiteElo "2357"]
[BlackElo "2281"]
[Annotator "ChessBase"]
[PlyCount "89"]
[EventDate "2021.11.05"]
[EventType "swiss"]
[EventCountry "SWE"]
[SourceTitle "playchess.com"]
[Source "ChessBase"]
[SourceQuality "1"]
[TimeControl "900+5"]

1. d4 {[%emt 0:00:05]} e6 {[%emt 0:00:01]} 2. c4 {[%emt 0:00:03]} d5 {[%emt 0:
00:00]} 3. Nf3 {[%emt 0:00:03]} Nf6 {[%emt 0:00:02]} 4. g3 {[%emt 0:00:01]} Be7
{[%emt 0:00:05]} 5. Bg2 {[%emt 0:00:15]} O-O {[%emt 0:00:05]} 6. O-O {[%emt 0:
00:08]} b6 {[%emt 0:00:10]} 7. Ne5 {[%emt 0:00:55]} Bb7 {[%emt 0:00:08]} 8. Nc3
{[%emt 0:00:02]} Nbd7 {[%emt 0:00:15]} 9. Qa4 {[%emt 0:01:16]} Nxe5 {[%emt 0:
00:41]} 10. dxe5 {[%emt 0:00:02]} Ne4 {[%emt 0:00:33]} 11. Nxe4 {[%emt 0:02:04]
} dxe4 {[%emt 0:00:14]} 12. Rd1 {[%emt 0:00:50]} Qe8 {[%emt 0:00:36]} 13. Qc2 {
[%emt 0:00:45]} Qc6 {[%emt 0:00:24]} 14. Be3 {[%emt 0:01:49]} Rfd8 {[%emt 0:00:
15]} 15. Bd4 {[%emt 0:01:40]} a5 {[%emt 0:00:52]} 16. e3 {[%emt 0:00:09]} a4 {
[%emt 0:01:47]} 17. Rac1 {[%emt 0:00:13]} f5 {[%emt 0:02:25]} 18. exf6 {
[%emt 0:00:23]} Bxf6 {[%emt 0:00:18]} 19. Bxf6 {[%emt 0:01:00]} gxf6 {[%emt 0:
00:02]} 20. Qe2 {[%emt 0:00:24]} f5 {[%emt 0:00:53]} 21. Qh5 {[%emt 0:00:25]}
Rd6 {[%emt 0:01:38]} 22. Qg5+ {[%emt 0:00:33]} Kf7 {[%emt 0:00:17]} 23. Bf1 {
[%emt 0:00:56]} Rg8 {[%emt 0:00:28]} 24. Qh6 {[%emt 0:00:20]} Rg7 {[%emt 0:00:
21]} 25. Be2 {[%emt 0:00:09]} Kg8 {[%emt 0:00:10]} 26. Qf6 {[%emt 0:00:53]} Qe8
{[%emt 0:01:04]} 27. Rxd6 {[%emt 0:01:03]} cxd6 {[%emt 0:00:01]} 28. Rd1 {
[%emt 0:00:02]} Qd7 {[%emt 0:01:02]} 29. Qd4 {[%emt 0:00:18]} d5 {[%emt 0:01:
00]} 30. Qxb6 {[%emt 0:00:09]} Re7 {[%emt 0:00:15]} 31. cxd5 {[%emt 0:00:22]}
Bxd5 {[%emt 0:00:05]} 32. Bc4 {[%emt 0:00:18]} Qb7 {[%emt 0:00:07]} 33. Qd8+ {
[%emt 0:00:06]} Kg7 {[%emt 0:00:10]} 34. Bxd5 {[%emt 0:00:02]} exd5 {[%emt 0:
00:01]} 35. Rxd5 {[%emt 0:00:03]} Qc7 {[%emt 0:00:09]} 36. Qxc7 {[%emt 0:00:05]
} Rxc7 {[%emt 0:00:00]} 37. Rxf5 {[%emt 0:00:08]} Rc2 {[%emt 0:00:04]} 38. Ra5
{[%emt 0:00:06]} Rxb2 {[%emt 0:00:05]} 39. Rxa4 {[%emt 0:00:02]} h6 {[%emt 0:
00:02]} 40. Rxe4 {[%emt 0:00:04]} Rxa2 {[%emt 0:00:01]} 41. Kg2 {[%emt 0:00:02]
} Kg6 {[%emt 0:00:01]} 42. Rb4 {[%emt 0:00:02]} h5 {[%emt 0:00:01]} 43. h3 {
[%emt 0:00:04]} Rc2 {[%emt 0:00:02]} 44. g4 {[%emt 0:00:02]} h4 {[%emt 0:00:00]
} 45. Rb6+ {[%emt 0:00:04]} 1-0

[Event "Hasselbacken Open 2021"]
[Site "Stockholm"]
[Date "2021.11.05"]
[Round "3.5"]
[White "Lindberg, Bengt"]
[Black "Adler, Bo"]
[Result "1-0"]
[ECO "C80"]
[WhiteElo "2378"]
[BlackElo "2137"]
[Annotator "ChessBase"]
[PlyCount "35"]
[EventDate "2021.11.05"]
[EventType "swiss"]
[EventCountry "SWE"]
[SourceTitle "playchess.com"]
[Source "ChessBase"]
[SourceQuality "1"]
[TimeControl "900+5"]

1. e4 {[%emt 0:00:02]} e5 {[%emt 0:00:04]} 2. Nf3 {[%emt 0:00:03]} Nc6 {
[%emt 0:00:02]} 3. Bb5 {[%emt 0:00:03]} a6 {[%emt 0:00:04]} 4. Ba4 {[%emt 0:00:
02]} Nf6 {[%emt 0:00:06]} 5. O-O {[%emt 0:00:05]} Nxe4 {[%emt 0:00:11]} 6. d4 {
[%emt 0:00:05]} b5 {[%emt 0:00:02]} 7. Bb3 {[%emt 0:00:02]} d5 {[%emt 0:00:02]}
8. dxe5 {[%emt 0:00:04]} Be6 {[%emt 0:00:02]} 9. Nbd2 {[%emt 0:00:08]} Nc5 {
[%emt 0:00:22]} 10. c3 {[%emt 0:00:07]} d4 {[%emt 0:00:37]} 11. Bxe6 {[%emt 0:
00:06]} Nxe6 {[%emt 0:00:02]} 12. cxd4 {[%emt 0:00:03]} Ncxd4 {[%emt 0:00:04]}
13. a4 {[%emt 0:00:05]} Be7 {[%emt 0:00:48]} 14. Nxd4 {[%emt 0:02:05]} Nxd4 {
[%emt 0:00:46]} 15. Qg4 {[%emt 0:01:42]} Ne6 {[%emt 0:00:34]} 16. Rd1 {[%emt 0:
00:37]} O-O {[%emt 0:01:22]} 17. Ne4 {[%emt 0:11:11]} Qc8 {[%emt 0:01:16]} 18.
Be3 {[%emt 0:00:00]} 1-0

[Event "Hasselbacken Open 2021"]
[Site "Stockholm"]
[Date "2021.11.05"]
[Round "1.9"]
[White "Gudmundsson, Gunnar Erik"]
[Black "Kucuksari, Kaan"]
[Result "0-1"]
[ECO "E32"]
[WhiteElo "1834"]
[BlackElo "2331"]
[Annotator "broadcasts"]
[PlyCount "82"]
[EventDate "2021.11.05"]
[EventType "swiss"]
[EventCountry "SWE"]
[TimeControl "900+5"]

1. d4 {[%emt 0:15:10]} Nf6 2. c4 {[%emt 0:00:05]} e6 {[%emt 0:15:15]} 3. Nc3 {
[%emt 0:00:05]} Bb4 {[%emt 0:00:05]} 4. Qc2 {[%emt 0:00:05]} O-O {[%emt 0:00:
05]} 5. Bg5 {[%emt 0:00:05]} d6 {[%emt 0:00:05]} 6. e3 {[%emt 0:00:05]} b6 {
[%emt 0:00:05]} 7. Bd3 {[%emt 0:00:05]} h6 {[%emt 0:00:05]} 8. Bh4 {[%emt 0:00:
05]} Bb7 {[%emt 0:00:05]} 9. f3 {[%emt 0:00:05]} c5 {[%emt 0:00:05]} 10. Nge2 {
[%emt 0:00:05]} cxd4 {[%emt 0:00:05]} 11. exd4 {[%emt 0:00:05]} d5 {[%emt 0:00:
05]} 12. cxd5 {[%emt 0:00:05]} Bxd5 {[%emt 0:00:05]} 13. O-O {[%emt 0:00:05]}
Be7 {[%emt 0:00:05]} 14. Ne4 {[%emt 0:00:05]} Nc6 {[%emt 0:00:05]} 15. Qa4 {
[%emt 0:00:05]} a6 {[%emt 0:00:05]} 16. a3 {[%emt 0:00:05]} b5 {[%emt 0:00:05]}
17. Qd1 {[%emt 0:00:05]} Na5 {[%emt 0:00:05]} 18. b4 {[%emt 0:00:05]} Nc4 {
[%emt 0:00:05]} 19. Bf2 {[%emt 0:00:05]} Nb2 {[%emt 0:00:05]} 20. Qd2 {[%emt 0:
00:05]} Nxd3 21. Qxd3 Bc4 {[%emt 0:00:10]} 22. Qd2 {[%emt 0:00:10]} a5 {
[%emt 0:00:05]} 23. Nc5 {[%emt 0:00:05]} axb4 {[%emt 0:00:05]} 24. axb4 {
[%emt 0:00:05]} Nd5 {[%emt 0:00:05]} 25. Rfc1 {[%emt 0:00:05]} Bg5 {[%emt 0:00:
05]} 26. f4 {[%emt 0:00:05]} Be7 {[%emt 0:00:05]} 27. Ng3 {[%emt 0:00:05]} Nf6
{[%emt 0:00:05]} 28. Re1 {[%emt 0:00:05]} Ng4 {[%emt 0:00:05]} 29. f5 {[%emt 0:
00:05]} Bg5 {[%emt 0:00:05]} 30. Qc2 {[%emt 0:00:05]} Nxf2 {[%emt 0:00:05]} 31.
Qxf2 {[%emt 0:00:05]} Rxa1 {[%emt 0:00:05]} 32. Rxa1 Bf6 {[%emt 0:00:05]} 33.
Rd1 {[%emt 0:00:10]} exf5 {[%emt 0:00:05]} 34. Nxf5 {[%emt 0:00:05]} Re8 {
[%emt 0:00:05]} 35. h3 {[%emt 0:00:05]} Bd5 {[%emt 0:00:05]} 36. Ne3 {[%emt 0:
00:05]} Ba8 {[%emt 0:00:05]} 37. Ng4 {[%emt 0:00:05]} Bh4 {[%emt 0:00:05]} 38.
Qf1 {[%emt 0:00:05]} Qd5 {[%emt 0:00:05]} 39. Rd2 {[%emt 0:00:05]} Re1 {
[%emt 0:00:05]} 40. Qxe1 {[%emt 0:00:05]} Bxe1 {[%emt 0:00:05]} 41. Re2 {
[%emt 0:00:05]} Bg3 {[%emt 0:00:05]} 0-1

[Event "Hasselbacken Open 2021"]
[Site "Stockholm"]
[Date "2021.11.05"]
[Round "3.6"]
[White "Lind, Jan-Olov"]
[Black "Sorensen, Hampus"]
[Result "0-1"]
[ECO "C44"]
[WhiteElo "2196"]
[BlackElo "2377"]
[Annotator "ChessBase"]
[PlyCount "76"]
[EventDate "2021.11.05"]
[EventType "swiss"]
[EventCountry "SWE"]
[SourceTitle "playchess.com"]
[Source "ChessBase"]
[SourceQuality "1"]
[TimeControl "900+5"]

1. e4 {[%emt 0:00:03]} e5 {[%emt 0:00:02]} 2. Nf3 {[%emt 0:00:09]} Nc6 {
[%emt 0:00:02]} 3. d4 {[%emt 0:00:02]} exd4 {[%emt 0:00:01]} 4. c3 {[%emt 0:00:
01]} Nf6 {[%emt 0:00:19]} 5. e5 {[%emt 0:00:02]} Nd5 {[%emt 0:00:24]} 6. cxd4 {
[%emt 0:00:21]} Bb4+ {[%emt 0:00:15]} 7. Bd2 {[%emt 0:00:14]} Bxd2+ {[%emt 0:
00:07]} 8. Nbxd2 {[%emt 0:00:17]} d6 {[%emt 0:00:08]} 9. Bb5 {[%emt 0:00:36]}
O-O {[%emt 0:00:08]} 10. O-O {[%emt 0:00:28]} Nce7 {[%emt 0:00:11]} 11. Re1 {
[%emt 0:02:15]} Bf5 {[%emt 0:00:33]} 12. Ne4 {[%emt 0:00:43]} dxe5 {[%emt 0:00:
42]} 13. Nxe5 {[%emt 0:00:47]} Ng6 {[%emt 0:00:21]} 14. Nxg6 {[%emt 0:01:04]}
Bxg6 {[%emt 0:00:37]} 15. Qf3 {[%emt 0:00:57]} c6 {[%emt 0:00:08]} 16. Bf1 {
[%emt 0:02:49]} Qb6 {[%emt 0:00:05]} 17. Nc5 {[%emt 0:00:57]} Qxb2 {[%emt 0:00:
24]} 18. Rad1 {[%emt 0:00:22]} Rad8 {[%emt 0:00:47]} 19. h4 {[%emt 0:00:06]} h6
{[%emt 0:00:32]} 20. h5 {[%emt 0:00:08]} Bh7 {[%emt 0:00:01]} 21. Bd3 {[%emt 0:
00:10]} Bxd3 {[%emt 0:00:08]} 22. Rxd3 {[%emt 0:00:17]} Rfe8 {[%emt 0:00:14]}
23. Rxe8+ {[%emt 0:00:18]} Rxe8 {[%emt 0:00:01]} 24. Kh2 {[%emt 0:01:21]} Re7 {
[%emt 0:01:16]} 25. Qf5 {[%emt 0:00:24]} Qe2 {[%emt 0:00:41]} 26. Rf3 {[%emt 0:
00:32]} b6 {[%emt 0:02:29]} 27. Qc8+ {[%emt 0:00:34]} Re8 {[%emt 0:00:03]} 28.
Qxc6 {[%emt 0:00:03]} Nb4 {[%emt 0:00:06]} 29. Qd7 {[%emt 0:00:13]} bxc5 {
[%emt 0:00:04]} 30. Qxf7+ {[%emt 0:00:03]} Kh8 {[%emt 0:00:01]} 31. dxc5 {
[%emt 0:00:08]} Qe6 {[%emt 0:00:32]} 32. Qxa7 {[%emt 0:00:12]} Qe5+ {[%emt 0:
00:01]} 33. g3 {[%emt 0:00:10]} Qxh5+ {[%emt 0:00:12]} 34. Kg2 {[%emt 0:00:03]}
Re1 {[%emt 0:00:23]} 35. Qb8+ {[%emt 0:00:34]} Kh7 {[%emt 0:00:03]} 36. g4 {
[%emt 0:00:03]} Qh1+ {[%emt 0:00:21]} 37. Kg3 {[%emt 0:00:01]} Rg1+ {[%emt 0:
00:01]} 38. Kf4 {[%emt 0:00:02]} Qh2+ {[%emt 0:00:02]} 0-1

[Event "Hasselbacken Open 2021"]
[Site "Stockholm"]
[Date "2021.11.05"]
[Round "1.10"]
[White "Bellon Lopez, Juan Manuel"]
[Black "Lager, Thomas"]
[Result "1-0"]
[ECO "D00"]
[WhiteElo "2326"]
[BlackElo "1832"]
[Annotator "NA"]
[PlyCount "69"]
[EventDate "2021.11.05"]
[EventType "swiss"]
[EventCountry "SWE"]
[SourceTitle "playchess.com"]
[Source "ChessBase"]
[SourceQuality "1"]
[TimeControl "900+5"]

1. d4 {[%emt 0:00:02]} Nf6 {[%emt 0:00:06]} 2. Bg5 {[%emt 0:00:01]} d5 {
[%emt 0:00:36]} 3. Bxf6 {[%emt 0:00:03]} exf6 {[%emt 0:00:09]} 4. e3 {[%emt 0:
00:02]} c5 {[%emt 0:01:31]} 5. dxc5 {[%emt 0:00:52]} Bxc5 {[%emt 0:00:03]} 6.
c3 {[%emt 0:00:15]} O-O {[%emt 0:00:37]} 7. Nd2 {[%emt 0:00:07]} Nc6 {[%emt 0:
01:21]} 8. Nb3 {[%emt 0:00:04]} Bb6 {[%emt 0:00:28]} 9. Ne2 {[%emt 0:00:22]}
Bc7 {[%emt 0:01:15]} 10. g3 {[%emt 0:00:46]} Bf5 {[%emt 0:00:55]} 11. Bg2 {
[%emt 0:00:56]} Be4 {[%emt 0:00:24]} 12. O-O {[%emt 0:00:57]} Qe7 {[%emt 0:01:
14]} 13. Nbd4 {[%emt 0:00:59]} Rad8 {[%emt 0:02:04]} 14. Nxc6 {[%emt 0:00:41]}
bxc6 {[%emt 0:00:01]} 15. Nd4 {[%emt 0:01:14]} c5 {[%emt 0:00:25]} 16. Nc6 {
[%emt 0:00:15]} Qe6 {[%emt 0:00:07]} 17. Nxd8 {[%emt 0:00:03]} Rxd8 {[%emt 0:
00:01]} 18. Qa4 {[%emt 0:00:35]} Bb6 {[%emt 0:00:14]} 19. Bxe4 {[%emt 0:00:14]}
dxe4 {[%emt 0:00:11]} 20. Rad1 {[%emt 0:00:05]} Rd3 {[%emt 0:00:13]} 21. Rxd3 {
[%emt 0:00:41]} exd3 {[%emt 0:00:01]} 22. c4 {[%emt 0:00:09]} Qe5 {[%emt 0:00:
27]} 23. Qd7 {[%emt 0:00:22]} h5 {[%emt 0:00:11]} 24. Qxd3 {[%emt 0:00:21]}
Qxb2 {[%emt 0:00:14]} 25. Qb3 {[%emt 0:00:27]} Qe2 {[%emt 0:00:16]} 26. h4 {
[%emt 0:00:21]} g5 {[%emt 0:00:20]} 27. hxg5 {[%emt 0:00:48]} fxg5 {[%emt 0:00:
02]} 28. Qd1 {[%emt 0:00:03]} Qxc4 {[%emt 0:00:06]} 29. Qxh5 {[%emt 0:00:04]}
Bd8 {[%emt 0:01:56]} 30. Rd1 {[%emt 0:00:02]} Bf6 {[%emt 0:00:01]} 31. Rd6 {
[%emt 0:00:10]} Kg7 {[%emt 0:00:09]} 32. Qf3 {[%emt 0:01:08]} Qc3 {[%emt 0:00:
20]} 33. Kg2 {[%emt 0:00:31]} Qe5 {[%emt 0:00:18]} 34. Qd5 {[%emt 0:00:24]} Qb2
{[%emt 0:01:22]} 35. Rd7 {[%emt 0:00:07]} 1-0

[Event "Hasselbacken Open 2021"]
[Site "Stockholm"]
[Date "2021.11.05"]
[Round "3.7"]
[White "Lindgren, Philip"]
[Black "Wahlund, Max"]
[Result "1-0"]
[ECO "E14"]
[WhiteElo "2357"]
[BlackElo "2079"]
[Annotator "ChessBase"]
[PlyCount "55"]
[EventDate "2021.11.05"]
[EventType "swiss"]
[EventCountry "SWE"]
[SourceTitle "playchess.com"]
[Source "ChessBase"]
[SourceQuality "1"]
[TimeControl "900+5"]

1. d4 {[%emt 0:15:10]} Nf6 {[%emt 0:15:10]} 2. c4 {[%emt 0:00:05]} e6 {[%emt 0:
00:05]} 3. Nf3 {[%emt 0:00:05]} Bb4+ {[%emt 0:00:05]} 4. Nbd2 {[%emt 0:00:05]}
d5 {[%emt 0:00:05]} 5. e3 {[%emt 0:00:05]} O-O {[%emt 0:00:05]} 6. Be2 {
[%emt 0:00:05]} b6 {[%emt 0:00:05]} 7. O-O {[%emt 0:00:05]} Bb7 {[%emt 0:00:05]
} 8. a3 {[%emt 0:00:05]} Be7 {[%emt 0:00:05]} 9. b3 {[%emt 0:00:05]} c5 {
[%emt 0:00:05]} 10. dxc5 {[%emt 0:00:05]} bxc5 {[%emt 0:00:05]} 11. Bb2 {
[%emt 0:00:05]} Nc6 {[%emt 0:00:05]} 12. cxd5 {[%emt 0:00:05]} exd5 {[%emt 0:
00:05]} 13. Qc2 {[%emt 0:00:05]} Rc8 {[%emt 0:00:05]} 14. Rac1 {[%emt 0:00:05]}
d4 {[%emt 0:00:05]} 15. exd4 {[%emt 0:00:05]} Nxd4 {[%emt 0:00:05]} 16. Nxd4 {
[%emt 0:00:05]} cxd4 {[%emt 0:00:05]} 17. Qd3 {[%emt 0:00:05]} Qa5 {[%emt 0:00:
05]} 18. b4 {[%emt 0:00:05]} Qg5 {[%emt 0:00:05]} 19. Nf3 {[%emt 0:00:05]} Qh6
{[%emt 0:00:05]} 20. Qxd4 {[%emt 0:00:05]} Be4 {[%emt 0:00:05]} 21. Qe5 {
[%emt 0:00:05]} Rce8 {[%emt 0:00:05]} 22. Bb5 {[%emt 0:00:05]} Bxb4 {[%emt 0:
00:05]} 23. Bxe8 {[%emt 0:00:05]} Rxe8 {[%emt 0:00:05]} 24. Qb5 {[%emt 0:00:05]
} Bxf3 {[%emt 0:00:05]} 25. Bxf6 {[%emt 0:00:05]} Qg6 {[%emt 0:00:05]} 26.
Qxe8+ {[%emt 0:00:05]} Bf8 {[%emt 0:00:05]} 27. Qxf8+ {[%emt 0:00:05]} Kxf8 {
[%emt 0:00:05]} 28. Rc8# 1-0

[Event "Hasselbacken Open 2021"]
[Site "Stockholm"]
[Date "2021.11.05"]
[Round "3.8"]
[White "Lundin, Jan"]
[Black "Kucuksari, Kaan"]
[Result "0-1"]
[ECO "E31"]
[WhiteElo "2164"]
[BlackElo "2331"]
[Annotator "broadcasts"]
[PlyCount "50"]
[EventDate "2021.11.05"]
[EventType "swiss"]
[EventCountry "SWE"]
[TimeControl "900+5"]

1. d4 {[%emt 0:00:04]} Nf6 {[%emt 0:00:02]} 2. c4 {[%emt 0:00:01]} e6 {[%emt 0:
00:01]} 3. Nc3 {[%emt 0:00:01]} Bb4 {[%emt 0:00:01]} 4. Bg5 {[%emt 0:00:02]} c5
{[%emt 0:00:02]} 5. d5 {[%emt 0:00:02]} h6 {[%emt 0:00:12]} 6. Bh4 {[%emt 0:00:
01]} d6 {[%emt 0:01:58]} 7. Nf3 {[%emt 0:00:05]} exd5 {[%emt 0:00:38]} 8. cxd5
{[%emt 0:00:03]} g5 {[%emt 0:00:39]} 9. Bg3 {[%emt 0:00:02]} Ne4 {[%emt 0:00:
01]} 10. Rc1 {[%emt 0:01:56]} Qf6 {[%emt 0:02:20]} 11. Nd2 {[%emt 0:02:03]}
Nxg3 12. hxg3 {[%emt 0:00:10]} Nd7 {[%emt 0:02:58]} 13. e3 {[%emt 0:01:16]} Ne5
{[%emt 0:00:55]} 14. Be2 {[%emt 0:00:05]} g4 {[%emt 0:01:10]} 15. O-O {[%emt 0:
01:40]} h5 {[%emt 0:00:09]} 16. Nde4 {[%emt 0:02:54]} Qh6 {[%emt 0:00:29]} 17.
Nb5 {[%emt 0:00:18]} h4 {[%emt 0:00:49]} 18. Nbxd6+ {[%emt 0:01:36]} Kf8 {
[%emt 0:00:02]} 19. f4 {[%emt 0:01:32]} gxf3 {[%emt 0:00:17]} 20. Rxf3 {
[%emt 0:01:21]} Nxf3+ {[%emt 0:00:11]} 21. Bxf3 {[%emt 0:00:06]} hxg3 {[%emt 0:
00:05]} 22. Kf1 {[%emt 0:00:17]} Qxe3 {[%emt 0:02:30]} 23. Nxg3 {[%emt 0:00:03]
} c4 {[%emt 0:00:13]} 24. Nxc4 {[%emt 0:00:06]} Qf4 {[%emt 0:00:06]} 25. Nh5 {
[%emt 0:00:43]} Rxh5 {[%emt 0:01:22]} 0-1

[Event "Hasselbacken Open 2021"]
[Site "Stockholm"]
[Date "2021.11.05"]
[Round "3.9"]
[White "Bellon Lopez, Juan Manuel"]
[Black "Ostlund, Joar"]
[Result "1-0"]
[ECO "D03"]
[WhiteElo "2326"]
[BlackElo "2078"]
[Annotator "ChessBase"]
[PlyCount "87"]
[EventDate "2021.11.05"]
[EventType "swiss"]
[EventCountry "SWE"]
[SourceTitle "playchess.com"]
[Source "ChessBase"]
[SourceQuality "1"]
[TimeControl "900+5"]

1. d4 {[%emt 0:00:01]} Nf6 {[%emt 0:00:02]} 2. Bg5 {[%emt 0:00:01]} e6 {
[%emt 0:00:02]} 3. e3 {[%emt 0:00:02]} d5 {[%emt 0:00:05]} 4. Nf3 {[%emt 0:00:
13]} Be7 {[%emt 0:00:04]} 5. Nbd2 {[%emt 0:00:06]} O-O {[%emt 0:00:09]} 6. Bd3
{[%emt 0:00:02]} c5 {[%emt 0:00:15]} 7. c3 {[%emt 0:00:01]} b6 {[%emt 0:00:18]}
8. Ne5 {[%emt 0:00:08]} Bb7 {[%emt 0:00:30]} 9. O-O {[%emt 0:01:14]} h6 {
[%emt 0:00:22]} 10. Bxf6 {[%emt 0:00:15]} Bxf6 {[%emt 0:00:02]} 11. f4 {
[%emt 0:00:01]} Ba6 {[%emt 0:00:41]} 12. Bxa6 {[%emt 0:00:43]} Nxa6 {[%emt 0:
00:02]} 13. a4 {[%emt 0:00:19]} Nc7 {[%emt 0:00:17]} 14. a5 {[%emt 0:00:31]}
Qe7 {[%emt 0:01:08]} 15. Qb3 {[%emt 0:02:00]} b5 {[%emt 0:00:47]} 16. Qa3 {
[%emt 0:00:37]} b4 {[%emt 0:01:59]} 17. cxb4 cxb4 {[%emt 0:00:02]} 18. Qa4 {
[%emt 0:00:28]} Bxe5 {[%emt 0:05:39]} 19. fxe5 {[%emt 0:00:02]} Rac8 {[%emt 0:
00:56]} 20. Rac1 {[%emt 0:00:41]} Qg5 {[%emt 0:01:29]} 21. Rf3 {[%emt 0:01:30]}
Na6 {[%emt 0:00:01]} 22. Rc6 {[%emt 0:01:54]} Nb8 {[%emt 0:00:43]} 23. Rxc8 {
[%emt 0:00:27]} Rxc8 {[%emt 0:00:02]} 24. Qxb4 {[%emt 0:00:10]} Nc6 {[%emt 0:
00:24]} 25. Qb7 {[%emt 0:00:14]} Ne7 {[%emt 0:00:03]} 26. Qxa7 {[%emt 0:00:55]}
Rc2 {[%emt 0:00:20]} 27. h4 {[%emt 0:00:47]} Qxh4 {[%emt 0:00:17]} 28. Nf1 {
[%emt 0:00:25]} Nf5 {[%emt 0:00:12]} 29. Qb8+ {[%emt 0:01:20]} Kh7 30. Qb3 Rc1
{[%emt 0:00:10]} 31. Qd3 {[%emt 0:00:12]} Kg8 {[%emt 0:00:28]} 32. a6 {[%emt 0:
00:07]} Ra1 {[%emt 0:00:04]} 33. b4 {[%emt 0:00:49]} Ng3 {[%emt 0:00:06]} 34.
Rxg3 {[%emt 0:00:32]} Qxg3 {[%emt 0:00:02]} 35. b5 {[%emt 0:00:00]} Qe1 {
[%emt 0:00:03]} 36. b6 {[%emt 0:00:08]} Qb4 {[%emt 0:00:04]} 37. b7 {[%emt 0:
00:07]} Qb6 {[%emt 0:00:16]} 38. Kh2 {[%emt 0:00:18]} g6 {[%emt 0:00:02]} 39.
Nd2 {[%emt 0:00:10]} Qd8 {[%emt 0:00:02]} 40. Nf3 {[%emt 0:00:07]} g5 {[%emt 0:
00:08]} 41. Qb5 {[%emt 0:00:04]} Qb8 {[%emt 0:00:08]} 42. Qc6 {[%emt 0:00:01]}
Kg7 {[%emt 0:00:05]} 43. Qc8 {[%emt 0:00:07]} Qa7 {[%emt 0:00:04]} 44. b8=Q {
[%emt 0:00:08]} 1-0